lending/lending_fUSD_20241005
["ID","MTS","AMOUNT","RATE_DAILY","PERIOD"]
[339880958,1728118276589,-889.01,0.00044931,120]
[339880959,1728118276599,-813.16,0.00044931,120]
[339880960,1728118276609,-889.01,0.00044931,120]
[339880961,1728118276620,-500.0,0.00044931,30]
[339880962,1728118276631,-813.16,0.00044931,120]
[339880963,1728118276640,-889.01,0.00044931,120]
[339880964,1728118276650,-500.0,0.00044931,30]
[339880965,1728118276659,-500.0,0.00044931,120]
[339880966,1728118276668,-500.0,0.00044931,30]
[339880967,1728118276677,-889.01,0.00044931,120]
[339880968,1728118276687,-813.16,0.00044931,120]
[339880969,1728118276696,-500.0,0.00044931,120]
[339880970,1728118276705,-500.0,0.00044931,30]
[339880971,1728118276715,-889.01,0.00044931,120]
[339880972,1728118276724,-813.16,0.00044931,120]
[339880973,1728118276734,-500.0,0.00044931,120]
[339880974,1728118276744,-500.0,0.00044931,30]
[339880975,1728118276754,-889.01,0.00044931,120]
[339880976,1728118276763,-813.16,0.00044931,120]
[339880977,1728118276773,-500.0,0.00044931,120]
[339880978,1728118276783,-500.0,0.00044931,30]
[339880979,1728118276792,-813.16,0.00044931,120]
[339880980,1728118276801,-889.01,0.00044931,120]
[339880981,1728118276810,-500.0,0.00044931,120]
[339880982,1728118276819,-505.67100498,0.00044931,30]
[339880983,1728118276828,-813.28400007,0.00044931,120]
[339880984,1728118276837,-889.01,0.00044931,120]
[339880985,1728118276846,-500.0,0.00044931,120]
[339880986,1728118276855,-889.01,0.00044931,120]
[339880987,1728118276865,-500.0,0.00044931,120]
[339880988,1728118276876,-889.01,0.00044931,120]
[339880989,1728118276891,-500.0,0.00044931,120]
[339880990,1728118276900,-500.0,0.00044931,120]
[339880991,1728118276910,-889.01,0.00044931,120]
[339880992,1728118276919,-889.01,0.00044931,120]
[339880993,1728118276928,-500.0,0.00044931,120]
[339880994,1728118276937,-889.01,0.00044931,120]
[339880995,1728118276946,-500.0,0.00044931,120]
[339880996,1728118276955,-889.01,0.00044931,120]
[339880997,1728118276964,-401.98824943,0.00044931,120]
[339880998,1728118276974,-889.01,0.00044931,120]
[339880999,1728118276983,-889.01,0.00044931,120]
[339881000,1728118276992,-889.01,0.00044931,120]
[339881001,1728118277001,-889.01,0.00044931,120]
[339881002,1728118277010,-500.0,0.00044931,120]
[339881003,1728118277019,-889.12228705,0.00044931,120]
[339881004,1728118277028,-500.0,0.00044931,120]
[339881005,1728118277037,-500.0,0.00044931,120]
[339881006,1728118277046,-500.0,0.00044931,120]
[339881007,1728118277055,-500.0,0.00044931,120]
[339881008,1728118277064,-500.0,0.00044931,120]
[339881009,1728118277074,-500.0,0.00044931,120]
[339881010,1728118277083,-500.0,0.00044931,120]
[339881011,1728118277092,-500.0,0.00044931,120]
[339881012,1728118277101,-500.0,0.00044931,120]
[339881013,1728118277110,-500.0,0.00044931,120]
[339881014,1728118277119,-500.0,0.00044931,120]
[339881015,1728118277134,-500.0,0.00044931,120]
[339881016,1728118277143,-500.0,0.00044931,120]
[339881017,1728118277153,-500.0,0.00044931,120]
[339881018,1728118277161,-188.32,0.00044931,120]
[339881019,1728118277170,-500.0,0.00044931,120]
[339881020,1728118277179,-429.72963845,0.00044931,120]
[339881021,1728118277187,-636.59418382,0.00044931,120]
[339881022,1728118277196,-500.0,0.00044931,120]
[339881023,1728118277205,-500.0,0.00044931,120]
[339881024,1728118277215,-500.0,0.00044931,120]
[339881025,1728118277224,-500.0,0.00044931,120]
[339881026,1728118277233,-500.0,0.00044931,120]
[339881027,1728118277244,-500.0,0.00044931,120]
[339881028,1728118277252,-500.0,0.00044931,120]
[339881029,1728118277263,-150.0,0.00044935,30]
[339881030,1728118277272,-150.0,0.00044936,2]
[339881031,1728118277282,-150.0,0.00044939,2]
[339881032,1728118277291,-150.0,0.00044943,2]
[339881033,1728118277300,-150.0,0.00044949,2]
[339881034,1728118277309,-1850.75033314,0.0004495,2]
[339881035,1728118277318,-150.0,0.00044953,2]
[339881036,1728118277327,-150.0,0.0004496,2]
[339881037,1728118277336,-150.0,0.00044962,2]
[339881038,1728118277345,-150.0,0.00044966,2]
[339881039,1728118277354,-3883.1694481,0.00044969,2]
[339881040,1728118277363,-4595.3664647,0.00044969,2]
[339881041,1728118277372,-5307.5634814,0.00044969,2]
[339881042,1728118277384,-6019.7604981,0.00044969,2]
[339881043,1728118277393,-500.69550348,0.00044973,10]
[339881044,1728118277402,-500.0,0.00044973,10]
[339881045,1728118277411,-412.52217845,0.00044973,10]
[339881046,1728118277420,-150.0,0.00044977,2]
[339881047,1728118277429,-150.0,0.0004498,2]
[339881048,1728118277438,-150.0,0.00044982,2]
[339881049,1728118277447,-150.0,0.00044982,2]
[339881050,1728118277457,-162.19764424,0.00044992,2]
[339881051,1728118277465,-50000.0,0.00045,35]
[339881052,1728118277474,-50000.0,0.00045,45]
[339881053,1728118277483,-336075.70376711,0.00045,60]
[339881054,1728118277504,-1919.49092263,0.00045,60]
[339881055,1728118277515,-1107.2408442,0.00045,60]
[339881056,1728118277526,-19177.27197511,0.00045,60]
[339881057,1728118277536,-775.61553959,0.00045,60]
[339881058,1728118277547,-10845.13958382,0.00045,60]
[339881059,1728118277562,-500.0,0.00044931,120]
[339881060,1728118277571,-2646.7938,0.00045,60]
[339881061,1728118277582,-965.47893929,0.00045,60]
[339881062,1728118277592,-2388.94041669,0.00045,60]
[339881063,1728118277603,-9777.40127067,0.00045,60]
[339881064,1728118277614,-2668.05661857,0.00045,60]
[339881065,1728118277628,-3239.89044506,0.00045,60]
[339881066,1728118277639,-394.14575585,0.00045,60]
[339881067,1728118277650,-456.69632782,0.00045,60]
[339881068,1728118277666,-500.0,0.00044931,120]
[339881069,1728118277675,-3376.89018452,0.00045,60]
[339881070,1728118277687,-664.7658,0.00045,60]
[339881071,1728118277697,-5642.35225134,0.00045,60]
[339881072,1728118277709,-1096.58788023,0.00045,60]
[339881073,1728118277720,-4038.72292,0.00045,60]
[339881074,1728118277731,-2970.47425422,0.00045,60]
[339881075,1728118277742,-2982.25664371,0.00045,60]
[339881076,1728118277753,-21980.50124176,0.00045,60]
[339881077,1728118277764,-20046.88647575,0.00045,60]
[339881078,1728118277775,-1079.19611686,0.00045,60]
[339881079,1728118277786,-305934.84299996,0.00045,60]
[339881080,1728118277797,-3125.7061928,0.00045,60]
[339881081,1728118277863,-430.0,0.0004,5]
[339881082,1728118277873,-493.86523728,0.00044931,120]
[339881083,1728118277884,-6.13476272,0.00044931,120]
[339881084,1728118277893,-466.15599123,0.00044931,120]
[339881085,1728118277902,-500.0,0.00044931,120]
[339881086,1728118277911,-500.0,0.00044931,120]
[339881087,1728118277922,-500.0,0.00044931,120]
[339881088,1728118277931,-500.0,0.00044931,120]
[339881089,1728118277941,-500.0,0.00044931,120]
[339881090,1728118277951,-895648.69110066,0.00045,60]
[339881091,1728118277963,-869869.90285395,0.00045,60]
[339881092,1728118277975,-8413.18195188,0.00045,60]
[339881093,1728118277992,-500.0,0.00044931,120]
[339881094,1728118278001,-832.6099,0.00045,60]
[339881095,1728118278012,-1942.37721319,0.00045,60]
[339881096,1728118278022,-1595.41732748,0.00045,60]
[339881097,1728118278033,-656.14,0.00045,60]
[339881098,1728118278044,-539.06283141,0.00045,60]
[339881099,1728118278054,-828.75769103,0.00045,60]
[339881100,1728118278066,-24825.5670844,0.00045,60]
[339881101,1728118278076,-366477.76935272,0.00045,60]
[339881102,1728118278087,-6318.24239354,0.00045,60]
[339881103,1728118278118,-232702.469581,0.00045,60]
[339881104,1728118278130,-759.5238093,0.00045,60]
[339881105,1728118278141,-94550.08158042,0.00045,60]
[339881106,1728118278474,-150.0,0.00044734,2]
[339881107,1728118278483,-150.0,0.0004474,2]
[339881108,1728118278493,-150.0,0.00044741,2]
[339881109,1728118278502,-150.0,0.00044748,2]
[339881110,1728118278511,-150.0,0.00044751,2]
[339881111,1728118278520,-150.0,0.00044757,2]
[339881112,1728118278529,-150.0,0.00044762,2]
[339881113,1728118278538,-150.0,0.0004477,2]
[339881114,1728118278547,-150.0,0.00044779,2]
[339881115,1728118278556,-150.0,0.00044793,2]
[339881116,1728118278565,-150.0,0.00044799,2]
[339881117,1728118278574,-150.0,0.000448,2]
[339881118,1728118278583,-165.10055881,0.00044802,2]
[339881119,1728118278592,-150.0,0.00044803,2]
[339881120,1728118278601,-150.0,0.00044808,2]
[339881121,1728118278610,-150.0,0.00044823,2]
[339881122,1728118278619,-150.0,0.00044824,2]
[339881123,1728118278630,-150.0,0.00044827,2]
[339881124,1728118278639,-150.0,0.00044833,2]
[339881125,1728118278649,-62.27466898,0.00044836,2]
[339881126,1728118278660,-87.72533102,0.00044836,2]
[339881127,1728118278670,-150.0,0.00044836,2]
[339881128,1728118278679,-150.0,0.00044844,2]
[339881129,1728118278688,-115.46617311,0.00044852,2]
[339881130,1728118278700,-34.53382689,0.00044852,2]
[339881131,1728118278709,-150.0,0.00044854,2]
[339881132,1728118278718,-129.37102207,0.00044855,2]
[339881133,1728118278730,-20.62897793,0.00044855,2]
[339881134,1728118278739,-150.0,0.0004486,2]
[339881135,1728118278748,-150.0,0.00044862,2]
[339881136,1728118278758,-150.0,0.00044876,2]
[339881137,1728118278768,-150.0,0.00044894,2]
[339881138,1728118278777,-150.0,0.00044909,2]
[339881139,1728118278787,-150.0,0.00044915,2]
[339881140,1728118278796,-150.0,0.00044917,2]
[339881141,1728118278805,-150.0,0.00044926,2]
[339881142,1728118278816,-150.0,0.00044927,2]
[339881143,1728118278825,-150.0,0.00044927,2]
[339881144,1728118278834,-500.0,0.00044931,120]
[339881145,1728118278843,-500.0,0.00044931,120]
[339881146,1728118278853,-308.93,0.00044931,120]
[339881147,1728118278864,-150.0,0.00044932,2]
[339881148,1728118278875,-150.0,0.00044944,2]
[339881149,1728118278885,-150.0,0.00044961,2]
[339881150,1728118278894,-150.0,0.00044962,2]
[339881151,1728118278904,-150.0,0.00044962,2]
[339881152,1728118278915,-150.0,0.00044972,2]
[339881153,1728118278924,-150.0,0.00044993,2]
[339881154,1728118278934,-150.0,0.00044997,2]
[339881155,1728118278944,-6004.52949301,0.00045,60]
[339881156,1728118278955,-833.87987711,0.00045,60]
[339881157,1728118278966,-841.5247125,0.00045,60]
[339881158,1728118278977,-637.35010209,0.00045,60]
[339881159,1728118278988,-4791.17830158,0.00045,60]
[339881160,1728118278999,-369.12270208,0.00045,60]
[339881161,1728118279010,-1509.09021663,0.00045,60]
[339881162,1728118279024,-2557.84870107,0.00045,60]
[339881163,1728118279036,-1464.06406546,0.00045,60]
[339881164,1728118279048,-1732.275,0.00045,60]
[339881165,1728118279061,-2649.99999997,0.00045,60]
[339881166,1728118279073,-16896.2586345,0.00045,60]
[339881167,1728118279084,-1283.09584029,0.00045,60]
[339881168,1728118279097,-1128.06641355,0.00045,60]
[339881169,1728118279109,-912.45,0.00045,60]
[339881170,1728118279121,-1164.90682513,0.00045,60]
[339881171,1728118279133,-46141.56911209,0.00045,60]
[339881172,1728118279145,-76983.70110887,0.00045,60]
[339881173,1728118279156,-821.406033,0.00045,60]
[339881174,1728118279168,-6988.58717671,0.00045,60]
[339881175,1728118279179,-918.3487726,0.00045,60]
[339881176,1728118279190,-382.12258582,0.00045,60]
[339881177,1728118279202,-367.69336575,0.00045,60]
[339881178,1728118279213,-3313.60911296,0.00045,60]
[339881179,1728118279225,-523.92304689,0.00045,60]
[339881180,1728118279236,-938.47877362,0.00045,60]
[339881181,1728118279247,-1146.82366185,0.00045,60]
[339881182,1728118279259,-1149.07228572,0.00045,60]
[339881183,1728118279271,-1577.40019167,0.00045,60]
[339881184,1728118279282,-5943.6625,0.00045,60]
[339881185,1728118279293,-361.45361106,0.00045,60]
[339881186,1728118279304,-1558.32946893,0.00045,60]
[339881187,1728118279316,-273.88727203,0.00045,60]
[339881188,1728118279327,-16910.57568415,0.00045,60]
[339881189,1728118279347,-150.0,0.00044834,2]
[339881190,1728118279356,-1344.82037085,0.00045,60]
[339881191,1728118279368,-1005.53105948,0.00045,60]
[339881192,1728118279381,-4122.51854,0.00045,60]
[339881193,1728118279393,-318.33650079,0.00045,60]
[339881194,1728118279404,-387.7317709,0.00045,60]
[339881195,1728118279415,-2654.94895016,0.00045,60]
[339881196,1728118279426,-2009.13156047,0.00045,60]
[339881197,1728118279441,-283.51720375,0.00045,60]
[339881198,1728118279452,-1101.32515666,0.00045,60]
[339881199,1728118279465,-1222.58142477,0.00045,60]
[339881200,1728118279476,-450.0,0.00045,60]
[339881201,1728118279487,-898.99522388,0.00045,60]
[339881202,1728118279498,-277.38,0.00045,60]
[339881203,1728118279510,-356.88365472,0.00045,60]
[339881204,1728118279522,-467.5696332,0.00045,60]
[339881205,1728118279533,-117744.73324818,0.00045,60]
[339881206,1728118279544,-38401.44225513,0.00045,60]
[339881207,1728118279555,-1673.54415866,0.00045,60]
[339881208,1728118279566,-631.37538617,0.00045,60]
[339881209,1728118279580,-808.97139607,0.00045,60]
[339881210,1728118279591,-51777.34103376,0.00045,60]
[339881211,1728118279602,-361.43277495,0.00045,60]
[339881212,1728118279613,-321.8,0.00045,60]
[339881213,1728118279625,-686.30227017,0.00045,60]
[339881214,1728118279637,-729.75714118,0.00045,60]
[339881215,1728118279648,-6413.17356315,0.00045,60]
[339881216,1728118279660,-418.18435819,0.00045,60]
[339881217,1728118279671,-1346.35809449,0.00045,60]
[339881218,1728118279682,-8027.63642451,0.00045,60]
[339881219,1728118279693,-1788.63600368,0.00045,60]
[339881220,1728118279705,-3076.63408916,0.00045,60]
[339881221,1728118279716,-14282.35319939,0.00045,60]
[339881222,1728118279728,-2886.749998,0.00045,60]
[339881223,1728118279743,-645.0000275,0.00045,60]
[339881224,1728118279754,-3407.63288819,0.00045,60]
[339881225,1728118279765,-900.09,0.00045,60]
[339881226,1728118279776,-5203.1335847,0.00045,60]
[339881227,1728118279787,-3671.2053238,0.00045,60]
[339881228,1728118279798,-5966.55757461,0.00045,60]
[339881229,1728118279809,-602.28650003,0.00045,60]
[339881231,1728119127242,-162.1,0.00010959,2]
[339881232,1728119127265,-159.54,0.00010959,2]
[339881233,1728119312580,3000.0,0.00015,10]
[339881234,1728119349171,4000.0,0.00010228,2]
[339881244,1728119431753,-2600.0,0.00015,2]
[339881245,1728119431763,-11048.14304269,0.0001726,5]
[339881246,1728119431775,-524.02811403,0.0001726,5]
[339881247,1728119431809,-547.61517591,0.0001726,5]
[339881248,1728119431818,-183.67728785,0.00024832,2]
[339881249,1728119431827,-500.0,0.00024932,2]
[339881250,1728119431836,-500.0,0.00024932,2]
[339881251,1728119431845,-1430.90753624,0.0003,7]
[339881252,1728119431856,-13115.76460994,0.0003,7]
[339881253,1728119431871,-332.75527609,0.0003,7]
[339881254,1728119431884,-500.0,0.0003,7]
[339881255,1728119431895,-1231.85132041,0.0003,7]
[339881256,1728119431906,-311.84172578,0.0003,7]
[339881257,1728119431916,-424.87953154,0.0003,7]
[339881258,1728119431926,-189.14,0.00038633,2]
[339881259,1728119431935,-219.34048678,0.0003989,2]
[339881260,1728119431946,-796.89416303,0.0003989,2]
[339881261,1728119431956,-571.52115498,0.0003989,2]
[339881262,1728119431967,-854.82246888,0.0003989,2]
[339881263,1728119431979,-3866.84310349,0.0003989,2]
[339881264,1728119431989,-150.0,0.00039899,4]
[339881265,1728119431998,-297.9512,0.000399,2]
[339881266,1728119432012,-150.99,0.000399,2]
[339881267,1728119432021,-499.99,0.000399,2]
[339881268,1728119432031,-310.67,0.000399,2]
[339881269,1728119432040,-372.37,0.000399,2]
[339881271,1728119432050,-268.998,0.000399,56]
[339881272,1728119432059,-254.82,0.000399,2]
[339881273,1728119432069,-513.84,0.000399,2]
[339881274,1728119432078,-999.99,0.000399,2]
[339881275,1728119432087,-61239.48,0.000399,10]
[339881276,1728119432096,-500.0,0.00040172,2]
[339881277,1728119432106,-761.0,0.00040482,2]
[339881278,1728119432115,-250.0,0.00040629,120]
[339881279,1728119432124,-250.0,0.00040708,2]
[339881280,1728119432133,-189.14,0.00040897,2]
[339881281,1728119432142,-1500.0,0.0004095,50]
[339881282,1728119432151,-534.0,0.00041077,2]
[339881283,1728119432161,-933.72,0.00041541,2]
[339881284,1728119432170,-423.3,0.00041541,2]
[339881285,1728119432179,-154.03,0.00041678,2]
[339881286,1728119432188,-301.34,0.00041678,2]
[339881287,1728119432198,-300.39,0.00041678,2]
[339881288,1728119432207,-151.72,0.00041678,2]
[339881289,1728119432218,-719.73,0.00041678,2]
[339881290,1728119432227,-860.75,0.00041678,2]
[339881291,1728119432236,-300.0,0.00041678,2]
[339881292,1728119432245,-250.0,0.000417,2]
[339881293,1728119432254,-1658.5827,0.0004179,2]
[339881294,1728119432264,-2003.2338,0.0004179,2]
[339881295,1728119432273,-1003.13141524,0.00041799,3]
[339881296,1728119432282,-1000.0,0.000419,2]
[339881297,1728119432291,-2500.0,0.000419,2]
[339881298,1728119432300,-707.78,0.0004199,30]
[339881299,1728119432309,-6324.1472561,0.00042,120]
[339881300,1728119432365,-9423.99800782,0.00042,120]
[339881301,1728119432376,-1714.72611778,0.00042,120]
[339881303,1728119437800,-303.16003,0.000419,2]
[339881304,1728119437812,-315.0,0.000419,2]
[339881305,1728119437823,-381.83997,0.000419,2]
[339881306,1728119437833,-48.64308069,0.00042,120]
[339881307,1728119437843,-22151.84380116,0.00042,120]
[339881308,1728119437858,-666.4,0.00042,120]
[339881309,1728119437870,-740.34726879,0.00042,120]
[339881310,1728119437882,-3007.22553722,0.00042,120]
[339881311,1728119437893,-12680.68088358,0.00042,120]
[339881312,1728119437905,-74442.63386345,0.00042,120]
[339881313,1728119437917,-1363.28313491,0.00042,120]
[339881314,1728119437928,-55436.0710485,0.00042,120]
[339881315,1728119437937,-396.42,0.00042,30]
[339881316,1728119437946,-12759.99149186,0.000425,60]
[339881317,1728119437957,-703.20536157,0.000425,60]
[339881318,1728119437969,-942.59874058,0.000425,60]
[339881319,1728119437980,-1319.84777323,0.000425,60]
[339881320,1728119437989,-202.32,0.00042647,120]
[339881321,1728119437999,-152.45,0.0004299,2]
[339881322,1728119438011,-5000.0,0.00042997,120]
[339881323,1728119438020,-500.0,0.00042999,31]
[339881324,1728119438030,-500.0,0.00042999,31]
[339881325,1728119438040,-500.0,0.00042999,31]
[339881326,1728119438049,-323.76293668,0.00042999,31]
[339881327,1728119438058,-1000.0,0.00043,120]
[339881328,1728119438068,-20839.24478662,0.00043,120]
[339881329,1728119438079,-11985.51879728,0.00043,120]
[339881330,1728119438165,-24062.6376,0.00043,120]
[339881331,1728119438177,-1248.82727493,0.00043,120]
[339881332,1728119438188,-23406.47410261,0.00043,120]
[339881333,1728119438201,-28541.5074271,0.00043,120]
[339881334,1728119438213,-1954.87549614,0.00043,120]
[339881335,1728119438251,-1130.278736,0.00043,120]
[339881336,1728119438262,-27128.65124824,0.00043,120]
[339881337,1728119438273,-1335.85121143,0.00043,120]
[339881338,1728119438284,-2076.34305428,0.00043,120]
[339881339,1728119438295,-2227.01155927,0.00043,120]
[339881340,1728119438306,-19066.24339577,0.00043,120]
[339881341,1728119438317,-98367.5731726,0.00043,120]
[339881361,1728119439805,-137085.91014143,0.00043,120]
[339881362,1728119439816,-2409.35153101,0.00043,120]
[339881363,1728119439827,-583.86285183,0.00043,120]
[339881364,1728119439838,-24265.24768901,0.00043,120]
[339881365,1728119439849,-24929.11631104,0.00043,120]
[339881366,1728119439860,-7180.06767896,0.00043,120]
[339881367,1728119439871,-576.99,0.00043,120]
[339881368,1728119439882,-17763.29560768,0.00043,120]
[339881369,1728119439892,-1092.27862809,0.00043,120]
[339881370,1728119439903,-610.21274583,0.00043,120]
[339881371,1728119439914,-923.08443828,0.00043,120]
[339881372,1728119439925,-1103.41846136,0.00043,120]
[339881373,1728119439936,-18106.12605321,0.00043,120]
[339881374,1728119439945,-751.61309006,0.00043132,15]
[339881375,1728119439954,-189.14,0.0004316,2]
[339881376,1728119439964,-1000.0,0.00043232,2]
[339881377,1728119439974,-168.27,0.00043278,2]
[339881378,1728119439983,-300.0,0.000437,2]
[339881379,1728119439992,-150.0,0.00043973,30]
[339881380,1728119440002,-150.0,0.00043973,30]
[339881381,1728119440015,-150.0,0.00043973,30]
[339881382,1728119440025,-171.46043088,0.0004398,13]
[339881383,1728119440035,-182.10702495,0.00043999,31]
[339881384,1728119440045,-165762.0801197,0.00044,120]
[339881385,1728119440057,-3116.76815216,0.00044,120]
[339881386,1728119440068,-737.39442672,0.00044,120]
[339881387,1728119440079,-69976.38419518,0.00044,120]
[339881388,1728119440091,-59687.47526315,0.00044,120]
[339881389,1728119440102,-63394.02948113,0.00044,120]
[339881393,1728119440174,-137325.86836196,0.00044,120]
[339881395,1728119440183,-281.58039151,0.00044,20]
[339881397,1728119440192,-150.0,0.0004408,30]
[339881399,1728119440203,-150.0,0.00044187,30]
[339881401,1728119440211,-150.0,0.00044295,30]
[339881403,1728119440221,-150.0,0.00044305,30]
[339881405,1728119440230,-150.0,0.00044402,30]
[339881407,1728119440239,-2000.0,0.000445,60]
[339881409,1728119440248,-150.0,0.00044509,30]
[339881411,1728119440257,-150.0,0.00044617,30]
[339881413,1728119440266,-150.0,0.00044638,30]
[339881415,1728119440275,-150.0,0.00044724,30]
[339881418,1728119440284,-150.0,0.00044725,2]
[339881420,1728119440294,-150.0,0.00044743,2]
[339881422,1728119440303,-2500.0,0.00044763,5]
[339881424,1728119440312,-150.0,0.00044786,2]
[339881426,1728119440321,-1240.2966,0.0004479,2]
[339881428,1728119440330,-8371.375,0.0004479,2]
[339881429,1728119440339,-7090.1782,0.0004479,2]
[339881430,1728119440348,-1350.0,0.0004479,2]
[339881431,1728119440358,-423.5812,0.000448,2]
[339881432,1728119440367,-1389.66,0.000448,90]
[339881433,1728119440377,-1614.0,0.000448,120]
[339881434,1728119440387,-8500.97360336,0.000448,120]
[339881435,1728119440398,-150.0,0.00044805,2]
[339881436,1728119440408,-150.0,0.00044831,30]
[339881437,1728119440418,-609.68881299,0.00044878,120]
[339881438,1728119440429,-150.0,0.00044879,2]
[339881439,1728119440439,-500.0,0.0004489,120]
[339881440,1728119440448,-500.0,0.0004489,120]
[339881441,1728119440457,-500.0,0.0004489,120]
[339881442,1728119440469,-500.0,0.0004489,120]
[339881443,1728119440479,-500.0,0.0004489,120]
[339881444,1728119440488,-89903.9468,0.0004489,2]
[339881445,1728119440499,-18184.5471,0.0004489,2]
[339881446,1728119440509,-576.0,0.000449,7]
[339881447,1728119440518,-262.0196,0.000449,2]
[339881448,1728119440528,-500.0,0.000449,2]
[339881449,1728119440539,-245000.0,0.000449,2]
[339881450,1728119440547,-429.0,0.000449,32]
[339881451,1728119440557,-1000.0,0.000449,2]
[339881452,1728119440566,-5565.0105499,0.000449,120]
[339881453,1728119440579,-1608.91586877,0.000449,120]
[339881454,1728119440619,-5380.48614854,0.000449,120]
[339881455,1728119440636,-29574.57782437,0.000449,120]
[339881456,1728119440647,-467.84357261,0.000449,120]
[339881475,1728119442800,-560.47152291,0.000449,120]
[339881476,1728119442858,-1593.8,0.000449,120]
[339881477,1728119442870,-4813.9200438,0.000449,120]
[339881478,1728119442882,-274.44,0.000449,120]
[339881479,1728119442916,-1004.4826,0.000449,120]
[339881480,1728119443015,-960.1833562,0.000449,120]
[339881481,1728119443027,-470.18796624,0.000449,120]
[339881482,1728119443089,-36613.68054666,0.000449,120]
[339881483,1728119443098,-169.69,0.000449,120]
[339881484,1728119443108,-266.42337687,0.000449,120]
[339881485,1728119443116,-266.42337687,0.000449,120]
[339881486,1728119443126,-266.42337687,0.000449,120]
[339881487,1728119443135,-266.42337687,0.000449,120]
[339881488,1728119443145,-266.42337687,0.000449,120]
[339881489,1728119443154,-266.42337687,0.000449,120]
[339881490,1728119443163,-266.42337687,0.000449,120]
[339881491,1728119443172,-266.42337687,0.000449,120]
[339881492,1728119443181,-266.42337687,0.000449,120]
[339881493,1728119443191,-266.42337687,0.000449,120]
[339881494,1728119443200,-266.42337687,0.000449,120]
[339881495,1728119443209,-266.42337687,0.000449,120]
[339881496,1728119443218,-266.42337687,0.000449,120]
[339881497,1728119443228,-266.42337687,0.000449,120]
[339881498,1728119443237,-266.42337687,0.000449,120]
[339881499,1728119443247,-266.42337687,0.000449,120]
[339881500,1728119443256,-266.42337687,0.000449,120]
[339881501,1728119443265,-266.42337687,0.000449,120]
[339881503,1728119443274,-266.42337687,0.000449,120]
[339881505,1728119443284,-266.92,0.000449,120]
[339881506,1728119443294,-351.48901737,0.000449,120]
[339881508,1728119443303,-351.48901737,0.000449,120]
[339881510,1728119443312,-351.48901737,0.000449,120]
[339881512,1728119443321,-351.48901737,0.000449,120]
[339881514,1728119443331,-351.48901737,0.000449,120]
[339881516,1728119443340,-351.48901737,0.000449,120]
[339881517,1728119443349,-351.48901737,0.000449,120]
[339881519,1728119443358,-351.48901737,0.000449,120]
[339881521,1728119443367,-351.48901737,0.000449,120]
[339881522,1728119443376,-351.48901737,0.000449,120]
[339881523,1728119443384,-351.48901737,0.000449,120]
[339881524,1728119443393,-351.48901737,0.000449,120]
[339881525,1728119443402,-351.48901737,0.000449,120]
[339881526,1728119443412,-351.48901737,0.000449,120]
[339881527,1728119443421,-351.48901737,0.000449,120]
[339881528,1728119443429,-351.48901737,0.000449,120]
[339881529,1728119443438,-351.48901737,0.000449,120]
[339881530,1728119443447,-351.48901737,0.000449,120]
[339881531,1728119443457,-351.48901737,0.000449,120]
[339881532,1728119443465,-351.98,0.000449,120]
[339881533,1728119443475,-339.37375452,0.000449,2]
[339881534,1728119443485,-150.0,0.00044912,2]
[339881535,1728119443494,-150.0,0.00044914,2]
[339881536,1728119443503,-150.0,0.00044927,2]